fUST/lending_fUST_20260513
["ID","MTS","AMOUNT","RATE_DAILY","PERIOD"]
[422177245,1778650244000,-3132.51,0.0001178,2]
[422177246,1778650244000,-500.0,0.0001178,2]
[422177247,1778650244000,-603.74,0.0001178,2]
[422177235,1778650244000,-500.0,0.0001178,2]
[422177248,1778650244000,-2320.22,0.0001178,2]
[422177244,1778650244000,-942.17,0.0001178,2]
[422177227,1778650244000,-870.14,0.0001178,2]
[422177233,1778650244000,-500.0,0.0001178,2]
[422177229,1778650244000,-2117.75,0.0001178,2]
[422177225,1778650244000,-5412.13,0.0001178,2]
[422177224,1778650244000,-500.0,0.0001178,2]
[422177223,1778650244000,-4706.17,0.0001178,2]
[422177222,1778650244000,-6898.9,0.0001178,2]
[422177217,1778650244000,-2169.55,0.0001178,2]
[422177220,1778650244000,-2471.42,0.0001178,2]
[422177218,1778650244000,-1833.17,0.0001178,2]
[422177221,1778650244000,-2315.92,0.0001178,2]
[422177219,1778650244000,-696.39,0.0001178,2]
[422177216,1778650244000,-827.41,0.0001178,2]
[422177238,1778650244000,-1831.96,0.0001178,2]
[422177226,1778650244000,-500.0,0.0001178,2]
[422177237,1778650244000,-4330.45,0.0001178,2]
[422177269,1778650244000,-152.0,0.00011925,2]
[422177241,1778650244000,-1423.52,0.0001178,2]
[422177272,1778650244000,-24866.94389787,0.00012,2]
[422177270,1778650244000,-500.0,0.0001199,2]
[422177271,1778650244000,-71705.94359626,0.00012,2]
[422177239,1778650244000,-878.52,0.0001178,2]
[422177265,1778650244000,-160.0,0.00011879,3]
[422177267,1778650244000,-5888.28307473,0.000119,2]
[422177268,1778650244000,-11135.213971,0.00011922,2]
[422177264,1778650244000,-6461.27221,0.00011819,2]
[422177263,1778650244000,-3310.636105,0.00011819,2]
[422177261,1778650244000,-152.0,0.00011814,2]
[422177262,1778650244000,-160.0,0.00011819,2]
[422177258,1778650244000,-3340.11,0.0001178,2]
[422177257,1778650244000,-1674.6,0.0001178,2]
[422177266,1778650244000,-6428.63087034,0.0001188,10]
[422177256,1778650244000,-5470.01,0.0001178,2]
[422177259,1778650244000,-152.0,0.00011785,2]
[422177242,1778650244000,-1718.38,0.0001178,2]
[422177236,1778650244000,-37233.01,0.0001178,2]
[422177249,1778650244000,-2154.87,0.0001178,2]
[422177251,1778650244000,-3586.12,0.0001178,2]
[422177240,1778650244000,-7267.87,0.0001178,2]
[422177255,1778650244000,-517.72809902,0.0001178,2]
[422177260,1778650244000,-181.430686,0.00011813,2]
[422177253,1778650244000,-677.76,0.0001178,2]
[422177254,1778650244000,-2305.87,0.0001178,2]
[422177250,1778650244000,-500.65,0.0001178,2]
[422177252,1778650244000,-6210.28,0.0001178,2]
[422177394,1778651434000,-1888.9758795,8.955e-05,2]
[422177392,1778651434000,-3393.37127803,8.865e-05,2]
[422177415,1778651438000,-1200.0,9.504e-05,2]
[422177413,1778651438000,-3111.0241205,8.955e-05,2]
[422177414,1778651438000,-411.46666513,9.091e-05,2]
[422177417,1778651438000,-300.0,9.505e-05,2]
[422177416,1778651438000,-300.0,9.505e-05,2]
[422177419,1778651438000,-300.0,9.505e-05,2]
[422177425,1778651438000,-26.27595266,9.505e-05,2]
[422177421,1778651438000,-300.0,9.505e-05,2]
[422177420,1778651438000,-300.0,9.505e-05,2]
[422177422,1778651438000,-105.41657138,9.505e-05,2]
[422177424,1778651438000,-300.0,9.505e-05,2]
[422177423,1778651438000,-194.58342862,9.505e-05,2]
[422177418,1778651438000,-300.0,9.505e-05,2]
[422177493,1778651441000,-300.0,9.505e-05,2]
[422177487,1778651441000,-273.72404734,9.505e-05,2]
[422177489,1778651441000,-300.0,9.505e-05,2]
[422177491,1778651441000,-300.0,9.505e-05,2]
[422177505,1778651441000,-831.74568273,0.00010199,2]
[422177495,1778651441000,-300.0,9.505e-05,2]
[422177497,1778651441000,-300.0,9.505e-05,2]
[422177501,1778651441000,-160.0,0.0001,2]
[422177499,1778651441000,-300.0,9.505e-05,2]
[422177503,1778651441000,-2135.97920914,0.00010199,2]
[422177876,1778651444000,-500.0,0.00010957,2]
[422177870,1778651444000,-152.0,0.00010883,2]
[422177866,1778651444000,-161.63868993,0.00010779,2]
[422177872,1778651444000,-800.0,0.00010939,2]
[422177868,1778651444000,-201.43471339,0.00010858,2]
[422177874,1778651444000,-537.6845,0.00010951,2]
[422177879,1778651444000,-500.0,0.00010957,2]
[422177861,1778651444000,-152.0,0.00010653,7]
[422177881,1778651444000,-280.87112336,0.00010957,2]
[422177864,1778651444000,-160.0,0.00010779,2]
[422177862,1778651444000,-160.0,0.00010779,2]
[422177859,1778651444000,-152.0,0.0001065,7]
[422177856,1778651444000,-600.0,0.00010402,2]
[422177852,1778651444000,-15863.41812602,0.00010199,2]
[422177877,1778651444000,-389.7669006,0.00010957,2]
[422177883,1778651444000,-1423.2303126,0.00010957,2]
[422177854,1778651444000,-3377.82140016,0.00010199,2]
[422177887,1778651444000,-329.73417119,0.00010957,2]
[422177885,1778651444000,-1423.2303126,0.00010957,2]
[422177926,1778651444000,-262.42625159,0.00010957,2]
[422177922,1778651444000,-797.9436118,0.00010957,2]
[422177916,1778651444000,-56.07812697,0.00010957,2]
[422177919,1778651444000,-362.86044921,0.00010957,2]
[422177909,1778651444000,-1367.15218563,0.00010957,2]
[422177906,1778651444000,-523.86984887,0.00010957,2]
[422177927,1778651444000,-238.25374841,0.00010957,2]
[422177899,1778651444000,-1395.42992013,0.00010957,2]
[422177901,1778651444000,-27.80039247,0.00010957,2]
[422177897,1778651444000,-1423.2303126,0.00010957,2]
[422177893,1778651444000,-1423.2303126,0.00010957,2]
[422177895,1778651444000,-1423.2303126,0.00010957,2]
[422177891,1778651444000,-1128.97328122,0.00010957,2]
[422177889,1778651444000,-294.25703138,0.00010957,2]
[422177903,1778651444000,-899.36046373,0.00010957,2]
[422178323,1778651447000,-3448.86273872,0.00010958,2]
[422178329,1778651447000,-998.9,0.00010958,2]
[422178331,1778651447000,-500.0,0.00010958,2]
[422178333,1778651447000,-500.0,0.00010958,2]
[422178337,1778651447000,-500.0,0.00010958,2]
[422178339,1778651447000,-500.0,0.00010958,2]
[422178335,1778651447000,-735.68,0.00010958,2]
[422178344,1778651447000,-500.0,0.00010958,2]
[422178353,1778651447000,-623.55,0.00010958,2]
[422178351,1778651447000,-931.6,0.00010958,2]
[422178346,1778651447000,-500.0,0.00010958,2]
[422178348,1778651447000,-1238.48,0.00010958,2]
[422178350,1778651447000,-359.16182738,0.00010958,2]
[422178321,1778651447000,-2550.4041817,0.00010957,2]
[422178355,1778651447000,-2122.12,0.00010958,2]
[422178341,1778651447000,-991.23,0.00010958,2]
[422178317,1778651447000,-1458.81107042,0.00010957,2]
[422178306,1778651447000,-1458.81107042,0.00010957,2]
[422178327,1778651447000,-500.0,0.00010958,2]
[422178357,1778651447000,-500.28459862,0.00010958,2]
[422178257,1778651447000,-1423.2303126,0.00010957,2]
[422178255,1778651447000,-1184.97656419,0.00010957,2]
[422178261,1778651447000,-1423.2303126,0.00010957,2]
[422178259,1778651447000,-1423.2303126,0.00010957,2]
[422178263,1778651447000,-606.39139201,0.00010957,2]
[422178302,1778651447000,-1458.81107042,0.00010957,2]
[422178300,1778651447000,-852.41967841,0.00010957,2]
[422178304,1778651447000,-1458.81107042,0.00010957,2]
[422178310,1778651447000,-1458.81107042,0.00010957,2]
[422178308,1778651447000,-1458.81107042,0.00010957,2]
[422178313,1778651447000,-1458.81107042,0.00010957,2]
[422178311,1778651447000,-1458.81107042,0.00010957,2]
[422178315,1778651447000,-1458.81107042,0.00010957,2]
[422178325,1778651447000,-500.0,0.00010958,2]
[422178319,1778651447000,-1458.81107042,0.00010957,2]
[422178359,1778651447000,-500.0,0.00010958,2]
[422178371,1778651447000,-564.8,0.00010958,2]
[422178365,1778651447000,-775.97,0.00010958,2]
[422178401,1778651447000,-537.36,0.00010958,2]
[422178405,1778651447000,-2064.43,0.00010958,2]
[422178409,1778651447000,-500.0,0.00010958,2]
[422178416,1778651447000,-539.82,0.00010958,2]
[422178412,1778651447000,-500.0,0.00010958,2]
[422178411,1778651447000,-1314.78,0.00010958,2]
[422178414,1778651447000,-2077.68,0.00010958,2]
[422178418,1778651447000,-539.01,0.00010958,2]
[422178432,1778651447000,-500.0,0.00010958,2]
[422178420,1778651447000,-500.0,0.00010958,2]
[422178361,1778651447000,-500.0,0.00010958,2]
[422178424,1778651447000,-1221.72,0.00010958,2]
[422178426,1778651447000,-5235.72,0.00010958,2]
[422178428,1778651447000,-1463.24,0.00010958,2]
[422178430,1778651447000,-529.31,0.00010958,2]
[422178399,1778651447000,-800.7,0.00010958,2]
[422178407,1778651447000,-533.75703025,0.00010958,2]
[422178422,1778651447000,-3446.7552,0.00010958,2]
[422178403,1778651447000,-752.94,0.00010958,2]
[422178398,1778651447000,-993.14,0.00010958,2]
[422178363,1778651447000,-500.0,0.00010958,2]
[422178380,1778651447000,-500.0,0.00010958,2]
[422178367,1778651447000,-532.54,0.00010958,2]
[422178382,1778651447000,-1096.84,0.00010958,2]
[422178369,1778651447000,-500.0,0.00010958,2]
[422178377,1778651447000,-500.0,0.00010958,2]
[422178374,1778651447000,-500.0,0.00010958,2]
[422178394,1778651447000,-500.0,0.00010958,2]
[422178386,1778651447000,-601.16,0.00010958,2]
[422178384,1778651447000,-500.0,0.00010958,2]
[422178390,1778651447000,-500.0,0.00010958,2]
[422178388,1778651447000,-2000.16,0.00010958,2]
[422178392,1778651447000,-500.0,0.00010958,2]
[422178376,1778651447000,-692.45,0.00010958,2]
[422178396,1778651447000,-500.0,0.00010958,2]
[422178467,1778651448000,-1992.43,0.00010958,2]
[422178466,1778651448000,-710.34,0.00010958,2]
[422178464,1778651448000,-1870.46,0.00010958,2]
[422178465,1778651448000,-2144.45,0.00010958,2]
[422178469,1778651448000,-500.0,0.00010958,2]
[422178476,1778651448000,-1052.29,0.00010958,2]
[422178472,1778651448000,-500.0,0.00010958,2]
[422178474,1778651448000,-692.84,0.00010958,2]
[422178462,1778651448000,-500.0,0.00010958,2]
[422178471,1778651448000,-1548.48,0.00010958,2]
[422178468,1778651448000,-5857.03,0.00010958,2]
[422178460,1778651448000,-500.0,0.00010958,2]
[422178441,1778651448000,-500.0,0.00010958,2]
[422178452,1778651448000,-625.88,0.00010958,2]
[422178450,1778651448000,-500.0,0.00010958,2]
[422178449,1778651448000,-5252.14,0.00010958,2]
[422178456,1778651448000,-500.0,0.00010958,2]
[422178447,1778651448000,-500.0,0.00010958,2]
[422178445,1778651448000,-500.0,0.00010958,2]
[422178443,1778651448000,-1302.7,0.00010958,2]
[422178439,1778651448000,-1483.96,0.00010958,2]
[422178436,1778651448000,-1856.55,0.00010958,2]
[422178437,1778651448000,-536.24,0.00010958,2]
[422178434,1778651448000,-2404.67,0.00010958,2]
[422178473,1778651448000,-4579.09,0.00010958,2]
[422178458,1778651448000,-981.9,0.00010958,2]
[422178470,1778651448000,-2080.35,0.00010958,2]
[422178454,1778651448000,-1747.73,0.00010958,2]
[422178479,1778651448000,-3984.31,0.00010958,2]
[422178478,1778651448000,-1531.54,0.00010958,2]
[422178528,1778651448000,-592.00897924,0.00010958,2]
[422178518,1778651448000,-2682.6,0.00010958,2]
[422178520,1778651448000,-31518.77,0.00010958,2]
[422178524,1778651448000,-1858.22,0.00010958,2]
[422178526,1778651448000,-6156.65,0.00010958,2]
[422178522,1778651448000,-503.12,0.00010958,2]
[422178516,1778651448000,-500.0,0.00010958,2]
[422178514,1778651448000,-1207.1,0.00010958,2]
[422178508,1778651448000,-1525.45,0.00010958,2]
[422178530,1778651448000,-366.0,0.00010958,2]
[422178512,1778651448000,-1494.48,0.00010958,2]
[422178506,1778651448000,-808.69,0.00010958,2]
[422178510,1778651448000,-793.06,0.00010958,2]
[422178503,1778651448000,-1589.13,0.00010958,2]
[422178483,1778651448000,-500.0,0.00010958,2]
[422178504,1778651448000,-500.0,0.00010958,2]
[422178482,1778651448000,-745.95,0.00010958,2]
[422178487,1778651448000,-1827.29,0.00010958,2]
[422178489,1778651448000,-4282.74,0.00010958,2]
[422178500,1778651448000,-500.0,0.00010958,2]
[422178485,1778651448000,-1285.33,0.00010958,2]
[422178493,1778651448000,-500.0,0.00010958,2]
[422178494,1778651448000,-3692.32,0.00010958,2]
[422178496,1778651448000,-500.0,0.00010958,2]
[422178498,1778651448000,-500.0,0.00010958,2]
[422178491,1778651448000,-500.0,0.00010958,2]
[422178923,1778651593000,3000.0,0.00014,30]
[422179072,1778652631000,-165.0107739,0.0001043,2]
[422179064,1778652631000,-336.531683,7.301e-05,2]
[422179067,1778652631000,-376.71598692,7.375e-05,2]
[422179065,1778652631000,-603.92754113,7.301e-05,2]
[422179066,1778652631000,-782.52513759,7.375e-05,2]
[422179068,1778652631000,-3840.75887549,7.375e-05,2]
[422179069,1778652631000,-2525.87931783,7.6e-05,2]
[422179070,1778652631000,-418.0556343,8.756e-05,2]
[422179074,1778652631000,-500.0,0.00010683,2]
[422179071,1778652631000,-304.0,9.425e-05,2]
[422179073,1778652631000,-185.0,0.00010682,2]
[422179078,1778652631000,-500.0,0.00010683,2]
[422179081,1778652631000,-500.0,0.00010683,2]
[422179083,1778652631000,-500.0,0.00010683,2]
[422179082,1778652631000,-500.0,0.00010683,2]
[422179084,1778652631000,-155.07215923,0.00010683,2]
[422179079,1778652631000,-500.0,0.00010683,2]
[422179080,1778652631000,-500.0,0.00010683,2]
[422179075,1778652631000,-500.0,0.00010683,2]
[422179077,1778652631000,-500.0,0.00010683,2]
[422179106,1778652638000,-500.0,0.00010683,2]
[422179120,1778652638000,-500.0,0.00010683,2]
[422179113,1778652638000,-500.0,0.00010683,2]
[422179114,1778652638000,-500.0,0.00010683,2]
[422179110,1778652638000,-500.0,0.00010683,2]
[422179121,1778652638000,-500.0,0.00010683,2]
[422179108,1778652638000,-500.0,0.00010683,2]
[422179112,1778652638000,-500.0,0.00010683,2]
[422179105,1778652638000,-500.0,0.00010683,2]
[422179109,1778652638000,-500.0,0.00010683,2]
[422179099,1778652638000,-500.0,0.00010683,2]
[422179095,1778652638000,-405.60556729,0.00010683,2]
[422179102,1778652638000,-500.0,0.00010683,2]
[422179104,1778652638000,-500.0,0.00010683,2]
[422179103,1778652638000,-500.0,0.00010683,2]
[422179098,1778652638000,-500.0,0.00010683,2]
[422179107,1778652638000,-500.0,0.00010683,2]
[422179097,1778652638000,-190.93155892,0.00010683,2]
[422179096,1778652638000,-238.42422315,0.00010683,2]
[422179094,1778652638000,-500.0,0.00010683,2]
[422179093,1778652638000,-344.92784077,0.00010683,2]
[422179111,1778652638000,-500.0,0.00010683,2]
[422179100,1778652638000,-500.0,0.00010683,2]
[422179119,1778652638000,-500.0,0.00010683,2]
[422179101,1778652638000,-500.0,0.00010683,2]
[422179116,1778652638000,-500.0,0.00010683,2]
[422179118,1778652638000,-287.04512967,0.00010683,2]
[422179143,1778652638000,-627.11008292,0.00010857,2]
[422179137,1778652638000,-1328.88445908,0.00010857,2]
[422179141,1778652638000,-1328.88445908,0.00010857,2]
[422179140,1778652638000,-1328.88445908,0.00010857,2]
[422179139,1778652638000,-1328.88445908,0.00010857,2]
[422179136,1778652638000,-1328.88445908,0.00010857,2]
[422179138,1778652638000,-1328.88445908,0.00010857,2]
[422179128,1778652638000,-500.0,0.00010683,2]
[422179130,1778652638000,-546.71983489,0.00010683,2]
[422179132,1778652638000,-161.63868993,0.00010846,2]
[422179135,1778652638000,-347.98982493,0.00010857,2]
[422179142,1778652638000,-1328.88445908,0.00010857,2]
[422179127,1778652638000,-500.0,0.00010683,2]
[422179131,1778652638000,-493.30564848,0.00010756,2]
[422179117,1778652638000,-500.0,0.00010683,2]
[422179115,1778652638000,-476.0,0.00010683,2]
[422179126,1778652638000,-500.0,0.00010683,2]
[422179124,1778652638000,-500.0,0.00010683,2]
[422179122,1778652638000,-500.0,0.00010683,2]
[422179123,1778652638000,-305.74521364,0.00010683,2]
[422179133,1778652638000,-160.0,0.00010846,2]
[422179125,1778652638000,-500.0,0.00010683,2]
[422179129,1778652638000,-576.06800779,0.00010683,2]
[422179134,1778652638000,-160.0,0.00010846,2]
[422179153,1778652640000,-741.27916626,0.00010576,2]
[422179146,1778652640000,-415.519,0.00010576,2]
[422179166,1778652643000,-440.17558813,0.00010857,2]
[422179168,1778652643000,-1328.88445908,0.00010857,2]
[422179177,1778652643000,-1328.88445908,0.00010857,2]
[422179171,1778652643000,-326.28347986,0.00010857,2]
[422179167,1778652643000,-1328.88445908,0.00010857,2]
[422179160,1778652643000,-450.09111734,0.00010576,2]
[422179165,1778652643000,-888.70887095,0.00010857,2]
[422179161,1778652643000,-701.77437616,0.00010857,2]
[422179163,1778652643000,-983.6630658,0.00010857,2]
[422179162,1778652643000,-325.99470508,0.00010857,2]
[422179159,1778652643000,-3393.1107164,0.00010576,2]
[422179173,1778652643000,-1002.60097922,0.00010857,2]
[422179164,1778652643000,-345.22139328,0.00010857,2]
[422179175,1778652643000,-309.06533184,0.00010857,2]
[422179179,1778652643000,-1349.32883536,0.00010857,2]
[422179169,1778652643000,-1328.88445908,0.00010857,2]
[422179174,1778652643000,-1019.81912724,0.00010857,2]
[422179187,1778652643000,-1349.32883536,0.00010857,2]
[422179188,1778652643000,-1349.32883536,0.00010857,2]
[422179189,1778652643000,-1461.04745936,0.00010857,2]
[422179186,1778652643000,-1349.32883536,0.00010857,2]
[422179192,1778652643000,-89166.84597688,0.00010858,2]
[422179185,1778652643000,-1349.32883536,0.00010857,2]
[422179181,1778652643000,-1349.32883536,0.00010857,2]
[422179182,1778652643000,-1349.32883536,0.00010857,2]
[422179191,1778652643000,-1461.04745936,0.00010857,2]
[422179190,1778652643000,-1461.04745936,0.00010857,2]
[422179184,1778652643000,-1349.32883536,0.00010857,2]
[422179180,1778652643000,-1349.32883536,0.00010857,2]
[422179176,1778652643000,-1328.88445908,0.00010857,2]
[422179183,1778652643000,-1349.32883536,0.00010857,2]
[422179204,1778652646000,-500.0,0.00010958,2]
[422179196,1778652646000,-176006.35137861,0.00010858,2]
[422179197,1778652646000,-15133.63418914,0.00010858,2]
[422179198,1778652646000,-537.6845,0.00010951,2]
[422179199,1778652646000,-1070.09720408,0.00010958,2]
[422179200,1778652646000,-58.03509592,0.00010958,2]
[422179203,1778652646000,-500.0,0.00010958,2]
[422179202,1778652646000,-500.0,0.00010958,2]
[422179201,1778652646000,-500.0,0.00010958,2]
[422179206,1778652646000,-576.11,0.00010958,2]
[422179213,1778652646000,-743.64,0.00010958,2]
[422179212,1778652646000,-663.6,0.00010958,2]
[422179205,1778652646000,-500.0,0.00010958,2]
[422179209,1778652646000,-500.0,0.00010958,2]
[422179211,1778652646000,-541.27,0.00010958,2]
[422179208,1778652646000,-516.56,0.00010958,2]
[422179214,1778652646000,-1022.28079654,0.00010958,2]
[422179207,1778652646000,-721.56,0.00010958,2]
[422179324,1778653832000,-3220.89746183,9.616e-05,2]
[422179322,1778653832000,-5000.0,9.52e-05,2]
[422179330,1778653832000,-414.33970489,9.762e-05,2]
[422179326,1778653832000,-1779.10253817,9.616e-05,2]
[422179334,1778653832000,-358.05528406,0.00010089,2]
[422179332,1778653832000,-1100.27736061,9.989e-05,2]
[422179333,1778653832000,-929.86696394,0.00010089,2]
[422179328,1778653832000,-300.0,9.761e-05,2]
[422179338,1778653838000,-871.0937238,0.00010089,2]
[422179340,1778653838000,-2430.03598175,0.00010189,2]
[422179339,1778653838000,-160.0,0.00010111,2]
[422179341,1778653838000,-1161.92161909,0.00010289,2]
[422179396,1778653843000,-500.0,0.00010684,2]
[422179393,1778653843000,-152.0,0.00010652,7]
[422179394,1778653843000,-152.0,0.00010655,7]
[422179391,1778653843000,-3111.10557144,0.00010589,2]
[422179389,1778653843000,-2940.77550892,0.00010489,2]
[422179392,1778653843000,-152.0,0.00010652,7]
[422179388,1778653843000,-1438.36087163,0.00010289,2]
[422179395,1778653843000,-500.0,0.00010684,2]
[422179390,1778653843000,-1022.35330549,0.00010527,2]
[422179408,1778653843000,-1951.59165203,0.00010889,2]
[422179405,1778653843000,-160.0,0.00010774,2]
[422179398,1778653843000,-500.0,0.00010684,2]
[422179400,1778653843000,-500.0,0.00010684,2]
[422179397,1778653843000,-500.0,0.00010684,2]
[422179401,1778653843000,-500.0,0.00010684,2]
[422179403,1778653843000,-3217.75458299,0.00010689,2]
[422179404,1778653843000,-160.0,0.00010774,2]
[422179402,1778653843000,-198.21847282,0.00010684,2]
[422179407,1778653843000,-3281.35688451,0.00010789,2]
[422179406,1778653843000,-161.63868993,0.00010774,2]
[422179399,1778653843000,-500.0,0.00010684,2]
[422179418,1778653846000,-339.13433122,0.00010889,2]
[422179517,1778655032000,-152.0,0.00010655,7]
[422179518,1778655032000,-160.0,0.00010658,2]
[422179528,1778655032000,-500.0,0.00010958,2]
[422179516,1778655032000,-152.0,0.00010655,7]
[422179515,1778655032000,-1009.48,0.000106,5]
[422179509,1778655032000,-5000.0,9.411e-05,2]
[422179513,1778655032000,-1000.0,0.000106,3]
[422179514,1778655032000,-1000.0,0.000106,4]
[422179512,1778655032000,-1000.0,0.000106,2]
[422179511,1778655032000,-412.57394424,9.651e-05,2]
[422179520,1778655032000,-161.63868993,0.00010773,2]
[422179510,1778655032000,-1140.41802909,9.506e-05,2]
[422179526,1778655032000,-155.0,0.00010957,2]
[422179523,1778655032000,-164.0494718,0.00010889,2]
[422179522,1778655032000,-1290.9055558,0.00010889,2]
[422179521,1778655032000,-160.0,0.00010773,2]
[422179519,1778655032000,-160.0,0.00010773,2]
[422179527,1778655032000,-500.0,0.00010958,2]
[422179524,1778655032000,-167.6649529,0.00010889,2]
[422179529,1778655032000,-978.11,0.00010958,2]
[422179531,1778655032000,-500.0,0.00010958,2]
[422179530,1778655032000,-500.0,0.00010958,2]
[422179534,1778655032000,-855.68,0.00010958,2]
[422179535,1778655032000,-70.20841426,0.00010958,2]
[422179532,1778655032000,-500.0,0.00010958,2]
[422179533,1778655032000,-500.0,0.00010958,2]
[422179525,1778655032000,-598.10356958,0.00010951,2]
[422179622,1778655047000,-1257.87188007,0.00010848,2]
[422179621,1778655047000,-837.40731626,0.00010848,2]
[422179623,1778655047000,-610.14168356,0.00010848,2]
[422179625,1778655047000,-253.12334974,0.00010958,2]
[422179624,1778655047000,-93.7031062,0.00010848,2]
[422179631,1778655050000,-341.93717887,0.00010958,2]
[422179630,1778655050000,-176.668236,0.00010958,2]
[422179635,1778655194000,5187.070921,0.00014,30]
[422179719,1778656232000,-415.50854083,7.449e-05,2]
[422179804,1778656238000,-500.0,0.00010683,2]
[422179779,1778656238000,-500.0,0.00010573,2]
[422179787,1778656238000,-151.5,0.00010573,2]
[422179788,1778656238000,-500.0,0.00010573,2]
[422179790,1778656238000,-500.0,0.00010573,2]
[422179792,1778656238000,-172.57314047,0.00010573,2]
[422179802,1778656238000,-537.6845,0.00010677,2]
[422179806,1778656238000,-500.0,0.00010683,2]
[422179785,1778656238000,-490.7179071,0.00010573,2]
[422179800,1778656238000,-286.4114,0.00010668,2]
[422179796,1778656238000,-152.0,0.00010654,7]
[422179807,1778656238000,-500.0,0.00010683,2]
[422179794,1778656238000,-151.5,0.00010573,2]
[422179770,1778656238000,-500.0,0.00010573,2]
[422179768,1778656238000,-500.0,0.00010573,2]
[422179773,1778656238000,-500.0,0.00010573,2]
[422179783,1778656238000,-500.0,0.00010573,2]
[422179781,1778656238000,-500.0,0.00010573,2]
[422179766,1778656238000,-500.0,0.00010573,2]
[422179777,1778656238000,-500.0,0.00010573,2]
[422179775,1778656238000,-500.0,0.00010573,2]
[422179764,1778656238000,-500.0,0.00010573,2]
[422179762,1778656238000,-500.0,0.00010573,2]
[422179760,1778656238000,-1404.20810182,0.0001,2]
[422179753,1778656238000,-4584.49145917,7.449e-05,2]
[422179758,1778656238000,-484.82452648,9.562e-05,2]
[422179757,1778656238000,-5295.81772407,7.6e-05,2]
[422179755,1778656238000,-410.86824278,7.562e-05,2]
[422179772,1778656238000,-500.0,0.00010573,2]
[422179809,1778656238000,-500.0,0.00010683,2]
[422179798,1778656238000,-152.0,0.00010654,7]
[422179813,1778656238000,-413.90354769,0.00010683,2]
[422179844,1778656238000,-198.0,0.00010951,2]
[422179811,1778656238000,-500.0,0.00010683,2]
[422179840,1778656238000,-537.6845,0.00010951,2]
[422179837,1778656238000,-621.78829552,0.00010897,2]
[422179843,1778656238000,-151.0,0.00010951,2]
[422179839,1778656238000,-175.69541903,0.00010951,2]
[422179835,1778656238000,-523.2104128,0.00010856,2]
[422179838,1778656238000,-162.380719,0.00010951,2]
[422179841,1778656238000,-151.0,0.00010951,2]
[422179834,1778656238000,-500.0,0.00010847,2]
[422179831,1778656238000,-161.63868993,0.00010846,2]
[422179842,1778656238000,-207.36705241,0.00010951,2]
[422179833,1778656238000,-160.0,0.00010846,2]
[422179832,1778656238000,-160.0,0.00010846,2]
[422179830,1778656238000,-599.60298507,0.00010842,2]
[422179836,1778656238000,-600.0,0.00010896,2]
[422179822,1778656238000,-151.5,0.00010684,2]
[422179823,1778656238000,-151.5,0.00010684,2]
[422179815,1778656238000,-500.0,0.00010683,2]
[422179816,1778656238000,-500.0,0.00010683,2]
[422179819,1778656238000,-301.42091311,0.00010683,2]
[422179817,1778656238000,-500.0,0.00010683,2]
[422179824,1778656238000,-299.92461801,0.00010684,2]
[422179818,1778656238000,-500.0,0.00010683,2]
[422179826,1778656238000,-157.80392734,0.00010684,2]
[422179821,1778656238000,-158.67795832,0.00010684,2]
[422179828,1778656238000,-578.20924308,0.00010787,2]
[422179820,1778656238000,-210.47735912,0.00010684,2]
[422179829,1778656238000,-160.0,0.0001083,2]
[422179827,1778656238000,-557.5788265,0.00010732,2]
[422179825,1778656238000,-151.5,0.00010684,2]
[422179884,1778656239000,-499.99999999,0.00010957,2]
[422179883,1778656239000,-500.0,0.00010957,2]
[422179885,1778656239000,-383.45085849,0.00010957,2]
[422179880,1778656239000,-500.0,0.00010957,2]
[422179878,1778656239000,-500.0,0.00010957,2]